[Event "1st SOA-GM Festival 2024"]
[Site "Bhubaneswar"]
[Date "2024.02.02"]
[Round "8.6"]
[White "Neelash Saha"]
[Black "Shahil Dey"]
[Result "1/2-1/2"]
[ECO "A14"]
[WhiteElo "2446"]
[BlackElo "2363"]
[Annotator "RC"]
[PlyCount "157"]
[EventDate "2024.02.01"]
[EventType "swiss"]
[EventCountry "IND"]
[SourceTitle "playchess.com"]
[Source "ChessBase"]
[SourceQuality "1"]
[TimeControl "5400+30"]

1. Nf3 {[%emt 0:00:06]} Nf6 {[%emt 0:00:05]} 2. b3 {[%emt 0:00:08]} d5 {[%emt 0:00:08]} 3. Bb2 {[%emt 0:00:05]} e6 {[%emt 0:02:15]} 4. c4 {[%emt 0:00:14]} b6 {[%emt 0:00:20]} 5. g3 {[%emt 0:01:36]} Bb7 {[%emt 0:00:52]} 6. Bg2 {[%emt 0:00:08]} Be7 {[%emt 0:02:32]} 7. O-O {[%emt 0:00:07]} O-O {[%emt 0:01:04]} 8. e3 {[%emt 0:02:04]} dxc4 {[%emt 0:08:54]} 9. bxc4 {[%emt 0:00:15]} c5 {[%emt 0:00:09]} 10. Qe2 {[%emt 0:00:16]} Nbd7 {[%emt 0:03:42]} 11. d3 {[%emt 0:00:50]} Qc7 {[%emt 0:03:50]} 12. Rd1 {[%emt 0:02:52]} Rfd8 {[%emt 0:03:29]} 13. Nc3 {[%emt 0:00:35]} a6 {[%emt 0:00:38]} 14. Rab1 {[%emt 0:00:23]} Rac8 {[%emt 0:04:07]} 15. Ba1 {[%emt 0:00:21]} Ne8 {[%emt 0:03:05]} 16. Ne4 {[%emt 0:07:39]} Bc6 {[%emt 0:02:15]} 17. Nc3 {[%emt 0:05:26]} Bf6 {[%emt 0:00:46]} 18. Rb3 {[%emt 0:00:39]} Nd6 {[%emt 0:04:26]} 19. e4 {[%emt 0:08:14]} Bd4 {[%emt 0:08:49]} 20. Rbb1 {[%emt 0:04:24]} Qa7 {[%emt 0:03:25]} 21. a4 {[%emt 0:13:47]} Bxc3 {[%emt 0:08:10]} 22. Bxc3 {[%emt 0:00:06]} Bxa4 {[%emt 0:00:05]} 23. Rd2 {[%emt 0:00:07]} Bc6 {[%emt 0:00:17]} 24. Ra2 {[%emt 0:00:05]} a5 {[%emt 0:00:58]} 25. Ne1 {[%emt 0:01:09]} a4 {[%emt 0:01:15]} 26. Qb2 {[%emt 0:02:10]} f6 {[%emt 0:05:42]} 27. Bh3 {[%emt 0:17:31]} Re8 {[%emt 0:00:57]} 28. Qa1 {[%emt 0:06:58]} Ra8 {[%emt 0:06:26]} 29. Rab2 {[%emt 0:01:12]} Rab8 {[%emt 0:02:04]} 30. Qa2 {[%emt 0:01:20]} Kh8 {[%emt 0:00:57]} 31. Bd2 {[%emt 0:07:36]} Nf8 {[%emt 0:04:02]} 32. Be3 {[%emt 0:00:43]} e5 {[%emt 0:03:02]} 33. Nc2 {[%emt 0:03:43]} Bd7 {[%emt 0:00:25]} 34. Bxd7 {[%emt 0:01:46]} Nxd7 {[%emt 0:00:04]} 35. Na3 {[%emt 0:00:23]} Ra8 {[%emt 0:01:14]} 36. Ra1 {[%emt 0:01:18]} Reb8 {[%emt 0:02:34]} 37. Qb1 {[%emt 0:03:07]} Qc7 {[%emt 0:02:41]} 38. Qc2 {[%emt 0:00:41]} Qc6 {[%emt 0:01:52]} 39. Nb5 {[%emt 0:03:35]} Nxb5 {[%emt 0:01:02]} 40. Rxb5 {[%emt 0:00:05]} Qd6 {[%emt 0:00:52]} 41. Rb2 {[%emt 0:00:17]} Qc6 {[%emt 0:05:40]} 42. Rba2 {[%emt 0:00:23]} Kg8 {[%emt 0:00:49]} 43. Rxa4 {[%emt 0:00:10]} Rxa4 {[%emt 0:00:03]} 44. Qxa4 {[%emt 0:00:05]} Qxa4 {[%emt 0:00:32]} 45. Rxa4 {[%emt 0:00:04]} Kf7 {[%emt 0:00:41]} 46. f4 {[%emt 0:00:56]} Rb7 {[%emt 0:01:19]} 47. Kf2 {[%emt 0:01:03]} Nb8 {[%emt 0:00:18]} 48. Ra8 {[%emt 0:01:02]} Ke7 {[%emt 0:01:18]} 49. f5 {[%emt 0:01:43]} Kd7 {[%emt 0:03:13]} 50. g4 {[%emt 0:00:09]} h6 {[%emt 0:00:24]} 51. h4 {[%emt 0:00:23]} Kc8 {[%emt 0:00:04]} 52. g5 {[%emt 0:00:35]} hxg5 {[%emt 0:00:04]} 53. hxg5 {[%emt 0:00:03]} fxg5 {[%emt 0:02:21]} 54. Bxg5 {[%emt 0:00:07]} Rd7 {[%emt 0:00:07]} 55. Ke3 {[%emt 0:02:40]} Kb7 {[%emt 0:00:01]} 56. Ra2 {[%emt 0:00:33]} Nc6 {[%emt 0:00:08]} 57. Bh4 {[%emt 0:00:24]} Kc7 {[%emt 0:01:45]} 58. Be1 {[%emt 0:00:25]} g6 {[%emt 0:00:40]} 59. fxg6 {[%emt 0:00:53]} Rg7 {[%emt 0:00:03]} 60. Rg2 {[%emt 0:00:05]} Ne7 {[%emt 0:00:15]} 61. Bc3 {[%emt 0:00:34]} Kd6 {[%emt 0:00:47]} 62. Rg5 {[%emt 0:00:09]} Rxg6 {[%emt 0:00:53]} 63. Bxe5+ {[%emt 0:00:35]} Kc6 {[%emt 0:00:13]} 64. Rh5 {[%emt 0:02:31]} b5 {[%emt 0:00:11]} 65. cxb5+ {[%emt 0:00:18]} Kxb5 {[%emt 0:00:01]} 66. Bd4 {[%emt 0:00:15]} Rc6 {[%emt 0:00:05]} 67. Kd2 {[%emt 0:00:08]} Kb4 {[%emt 0:01:00]} 68. Bc3+ {[%emt 0:00:06]} Kb3 {[%emt 0:01:10]} 69. Rh1 {[%emt 0:00:09]} Rg6 {[%emt 0:00:42]} 70. Rb1+ {[%emt 0:00:29]} Ka4 {[%emt 0:00:04]} 71. Ba1 {[%emt 0:03:10]} Nc6 {[%emt 0:00:15]} 72. Kc3 {[%emt 0:00:46]} Rg2 {[%emt 0:00:53]} 73. Rb2 {[%emt 0:00:33]} Rg1 {[%emt 0:00:35]} 74. Ra2+ {[%emt 0:00:18]} Kb5 {[%emt 0:00:01]} 75. Ra8 {[%emt 0:01:17]} Nd4 {[%emt 0:00:19]} 76. Kb2 {[%emt 0:00:43]} Rd1 {[%emt 0:01:09]} 77. Rb8+ {[%emt 0:00:38]} Kc6 {[%emt 0:00:04]} 78. Rc8+ {[%emt 0:00:03]} Kb5 {[%emt 0:00:12]} 79. Rb8+ {[%emt 0:00:04]} 1/2-1/2

[Event "1st SOA-GM Festival 2024"]
[Site "Bhubaneswar"]
[Date "2024.02.02"]
[Round "8.7"]
[White "Nguyen Van Huy"]
[Black "Subhayan Kundu"]
[Result "1/2-1/2"]
[ECO "E92"]
[WhiteElo "2364"]
[BlackElo "2385"]
[Annotator "RC"]
[PlyCount "124"]
[EventDate "2024.02.01"]
[EventType "swiss"]
[EventCountry "IND"]
[SourceTitle "playchess.com"]
[Source "ChessBase"]
[SourceQuality "1"]
[TimeControl "5400+30"]

1. d4 {[%emt 1:31:00]} Nf6 {[%emt 0:04:37]} 2. c4 {[%emt 0:00:00]} g6 {[%emt 0:00:17]} 3. Nc3 {[%emt 0:00:00]} Bg7 {[%emt 0:00:07]} 4. e4 {[%emt 0:00:00]} d6 {[%emt 0:01:30]} 5. Nf3 {[%emt 0:00:00]} O-O {[%emt 0:00:15]} 6. Be2 {[%emt 0:00:00]} e5 {[%emt 0:00:11]} 7. Be3 {[%emt 0:00:00]} Ng4 {[%emt 0:00:40]} 8. Bg5 {[%emt 0:00:00]} f6 {[%emt 0:00:14]} 9. Bh4 {[%emt 0:00:00]} g5 {[%emt 0:00:38]} 10. Bg3 {[%emt 0:00:00]} Nh6 {[%emt 0:00:13]} 11. dxe5 {[%emt 0:00:00]} dxe5 {[%emt 0:00:11]} 12. Qc2 {[%emt 0:00:00]} Na6 {[%emt 0:00:44]} 13. Nd2 {[%emt 0:00:00]} Nb4 {[%emt 0:00:57]} 14. Qa4 {[%emt 0:00:00]} a5 {[%emt 0:24:01]} 15. O-O-O {[%emt 0:00:00]} Bd7 {[%emt 0:05:44]} 16. Qb3 {[%emt 0:00:00]} Qe7 {[%emt 0:10:31]} 17. f3 {[%emt 0:00:00]} Nf7 {[%emt 0:04:37]} 18. Bf2 {[%emt 0:00:00]} Rfb8 {[%emt 0:14:07]} 19. a3 {[%emt 0:00:00]} Na6 {[%emt 0:12:10]} 20. Nd5 {[%emt 0:00:00]} Qe8 {[%emt 0:00:05]} 21. Qc3 {[%emt 0:00:00]} b6 {[%emt 0:00:05]} 22. h4 {[%emt 0:00:00]} Nd8 {[%emt 0:04:30]} 23. Nf1 {[%emt 0:00:00]} Ne6 {[%emt 0:01:16]} 24. Ng3 {[%emt 0:00:00]} Nac5 {[%emt 0:04:43]} 25. Nf5 {[%emt 0:00:00]} g4 {[%emt 0:00:12]} 26. Be3 {[%emt 0:00:00]} c6 {[%emt 0:02:09]} 27. Nde7+ {[%emt 0:00:00]} Kh8 {[%emt 0:00:04]} 28. Nxg7 {[%emt 0:00:00]} Nxg7 {[%emt 0:00:19]} 29. Nf5 {[%emt 0:00:00]} Bxf5 {[%emt 0:00:41]} 30. exf5 {[%emt 0:00:00]} Nxf5 {[%emt 0:00:06]} 31. fxg4 {[%emt 0:00:05]} Nxe3 {[%emt 0:00:50]} 32. Qxe3 {[%emt 0:00:30]} Rd8 {[%emt 0:00:05]} 33. Rhf1 {[%emt 0:02:00]} Qg6 {[%emt 0:03:38]} 34. Rf5 {[%emt 0:01:46]} Rxd1+ {[%emt 0:04:34]} 35. Bxd1 {[%emt 0:00:15]} Rd8 {[%emt 0:00:06]} 36. Bc2 {[%emt 0:02:44]} e4 {[%emt 0:00:49]} 37. Qf4 {[%emt 0:04:35]} Nd3+ {[%emt 0:00:11]} 38. Bxd3 {[%emt 0:00:17]} exd3 {[%emt 0:00:01]} 39. Kd2 {[%emt 0:00:36]} Qe8 {[%emt 0:00:05]} 40. Qf3 {[%emt 0:01:38]} Rd4 {[%emt 0:01:43]} 41. Rxf6 {[%emt 0:02:01]} Qe2+ {[%emt 0:00:08]} 42. Qxe2 {[%emt 0:00:10]} dxe2+ {[%emt 0:00:03]} 43. Kxe2 {[%emt 0:01:18]} Rxc4 {[%emt 0:00:20]} 44. Kf3 {[%emt 0:01:46]} Kg7 {[%emt 0:00:08]} 45. g5 {[%emt 0:00:20]} h5 {[%emt 0:02:47]} 46. Kg3 {[%emt 0:00:38]} b5 {[%emt 0:00:36]} 47. Kh3 {[%emt 0:00:43]} a4 {[%emt 0:00:35]} 48. g4 {[%emt 0:00:35]} Rxg4 {[%emt 0:00:50]} 49. Rxc6 {[%emt 0:00:06]} b4 {[%emt 0:00:53]} 50. axb4 {[%emt 0:01:11]} Rxb4 {[%emt 0:00:04]} 51. Rc2 {[%emt 0:00:11]} Rb3+ {[%emt 0:00:28]} 52. Kg2 {[%emt 0:00:05]} Rb4 {[%emt 0:00:12]} 53. Kg3 {[%emt 0:00:06]} Rg4+ {[%emt 0:00:21]} 54. Kh3 {[%emt 0:00:12]} Rb4 {[%emt 0:00:16]} 55. Re2 {[%emt 0:00:37]} Kg6 {[%emt 0:00:20]} 56. Kg3 {[%emt 0:00:14]} Rg4+ {[%emt 0:00:05]} 57. Kh3 {[%emt 0:00:04]} Rb4 {[%emt 0:00:07]} 58. Rf2 {[%emt 0:00:29]} Kg7 {[%emt 0:00:16]} 59. Re2 {[%emt 0:00:53]} Kg6 {[%emt 0:00:09]} 60. Rg2 {[%emt 0:00:08]} Rb3+ {[%emt 0:00:34]} 61. Kh2 {[%emt 0:00:12]} Rb4 {[%emt 0:00:07]} 62. Kh3 {[%emt 0:00:26]} Rb3+ {[%emt 0:00:09]} 1/2-1/2

[Event "1st SOA-GM Festival 2024"]
[Site "Bhubaneswar"]
[Date "2024.02.02"]
[Round "8.8"]
[White "Nithin Babu"]
[Black "Ritviz, Parab"]
[Result "0-1"]
[ECO "C88"]
[WhiteElo "2177"]
[BlackElo "2391"]
[Annotator "RC"]
[PlyCount "114"]
[EventDate "2024.02.01"]
[EventType "swiss"]
[EventCountry "IND"]
[SourceTitle "playchess.com"]
[Source "ChessBase"]
[SourceQuality "1"]
[TimeControl "5400+30"]

1. e4 {[%emt 0:00:38]} e5 {[%emt 0:00:25]} 2. Nf3 {[%emt 0:00:07]} Nc6 {[%emt 0:00:04]} 3. Bb5 {[%emt 0:00:05]} a6 {[%emt 0:00:04]} 4. Ba4 {[%emt 0:00:06]} Nf6 {[%emt 0:00:09]} 5. O-O {[%emt 0:00:07]} Be7 {[%emt 0:00:05]} 6. Re1 {[%emt 0:00:08]} b5 {[%emt 0:00:07]} 7. Bb3 {[%emt 0:00:04]} O-O {[%emt 0:00:07]} 8. a4 {[%emt 0:02:36]} Bb7 {[%emt 0:05:42]} 9. d3 {[%emt 0:00:35]} d6 {[%emt 0:04:45]} 10. h3 {[%emt 0:00:52]} Na5 {[%emt 0:01:35]} 11. Ba2 {[%emt 0:00:11]} c5 {[%emt 0:03:17]} 12. Nbd2 {[%emt 0:01:19]} h6 {[%emt 0:24:38]} 13. Nf1 {[%emt 0:03:55]} Re8 {[%emt 0:00:21]} 14. Ng3 {[%emt 0:05:03]} Bf8 {[%emt 0:01:12]} 15. Bd2 {[%emt 0:08:53]} b4 {[%emt 0:09:30]} 16. c3 {[%emt 0:09:52]} d5 {[%emt 0:00:48]} 17. cxb4 {[%emt 0:10:08]} cxb4 {[%emt 0:00:07]} 18. Rc1 {[%emt 0:04:31]} Qd6 {[%emt 0:18:28]} 19. d4 {[%emt 0:07:08]} Nc6 {[%emt 0:14:37]} 20. dxe5 {[%emt 0:29:01]} Nxe5 {[%emt 0:00:11]} 21. Bf4 {[%emt 0:01:18]} Nxf3+ {[%emt 0:00:31]} 22. Qxf3 {[%emt 0:00:05]} dxe4 {[%emt 0:02:55]} 23. Qe3 {[%emt 0:03:59]} Qd3 {[%emt 0:01:50]} 24. Qb6 {[%emt 0:02:07]} Bd5 {[%emt 0:02:15]} 25. Red1 {[%emt 0:02:36]} Bxa2 {[%emt 0:00:47]} 26. Rxd3 {[%emt 0:00:01]} exd3 {[%emt 0:00:01]} 27. Bd2 {[%emt 0:02:16]} a5 {[%emt 0:04:00]} 28. Qc6 {[%emt 0:02:40]} Rad8 {[%emt 0:00:41]} 29. Qf3 {[%emt 0:00:33]} Bb3 {[%emt 0:03:57]} 30. Kh2 {[%emt 0:01:14]} Bd6 {[%emt 0:01:38]} 31. Qxd3 {[%emt 0:02:21]} Bxa4 {[%emt 0:00:09]} 32. b3 {[%emt 0:01:26]} Bb8 {[%emt 0:00:56]} 33. Qc2 {[%emt 0:00:29]} Bxb3 {[%emt 0:00:20]} 34. Qxb3 {[%emt 0:00:08]} Rxd2 {[%emt 0:00:06]} 35. Kg1 {[%emt 0:00:24]} Bxg3 {[%emt 0:00:58]} 36. Qxg3 {[%emt 0:00:46]} a4 {[%emt 0:00:39]} 37. Qf4 {[%emt 0:00:12]} Rb2 {[%emt 0:00:07]} 38. Qd4 {[%emt 0:00:33]} a3 {[%emt 0:00:02]} 39. Kh2 {[%emt 0:00:37]} Re4 {[%emt 0:00:27]} 40. Rc8+ {[%emt 0:00:43]} Kh7 {[%emt 0:00:01]} 41. Qd3 {[%emt 0:00:09]} a2 {[%emt 0:01:31]} 42. Ra8 {[%emt 0:00:40]} Rxf2 {[%emt 0:00:06]} 43. Ra4 {[%emt 0:00:29]} Kg8 {[%emt 0:01:19]} 44. Ra8+ {[%emt 0:00:42]} Re8 {[%emt 0:00:09]} 45. Ra7 {[%emt 0:00:16]} Ree2 {[%emt 0:00:45]} 46. Ra8+ {[%emt 0:00:41]} Re8 {[%emt 0:00:02]} 47. Ra7 {[%emt 0:00:14]} Ree2 {[%emt 0:01:02]} 48. Ra8+ {[%emt 0:00:06]} Ne8 {[%emt 0:00:03]} 49. Qb5 {[%emt 0:00:34]} Rxg2+ {[%emt 0:00:58]} 50. Kh1 {[%emt 0:00:02]} Rh2+ {[%emt 0:00:29]} 51. Kg1 {[%emt 0:00:01]} Rhg2+ {[%emt 0:00:31]} 52. Kf1 {[%emt 0:01:47]} Rgf2+ {[%emt 0:00:05]} 53. Kg1 {[%emt 0:00:02]} Kh7 {[%emt 0:00:43]} 54. Qxb4 {[%emt 0:00:54]} Nc7 {[%emt 0:00:13]} 55. Ra3 {[%emt 0:00:51]} Nd5 {[%emt 0:00:26]} 56. Qc5 {[%emt 0:00:42]} Ne3 {[%emt 0:00:16]} 57. Rxa2 {[%emt 0:00:32]} Rf1# {[%emt 0:00:08]} 0-1

[Event "1st SOA-GM Festival 2024"]
[Site "Bhubaneswar"]
[Date "2024.02.02"]
[Round "8.9"]
[White "Rajesh, V A V"]
[Black "Audi Ameya"]
[Result "1-0"]
[ECO "E90"]
[WhiteElo "2331"]
[BlackElo "2385"]
[Annotator "RC"]
[PlyCount "77"]
[EventDate "2024.02.01"]
[EventType "swiss"]
[EventCountry "IND"]
[SourceTitle "playchess.com"]
[Source "ChessBase"]
[SourceQuality "1"]
[TimeControl "5400+30"]

1. d4 {[%emt 0:00:17]} Nf6 {[%emt 0:00:05]} 2. c4 {[%emt 0:00:06]} g6 {[%emt 0:00:03]} 3. Nc3 {[%emt 0:00:29]} Bg7 {[%emt 0:00:15]} 4. e4 {[%emt 0:00:27]} d6 {[%emt 0:00:04]} 5. h3 {[%emt 0:01:57]} e5 {[%emt 0:00:17]} 6. d5 {[%emt 0:01:32]} a5 {[%emt 0:00:24]} 7. Nf3 {[%emt 0:01:23]} Na6 {[%emt 0:00:11]} 8. Bd3 {[%emt 0:01:11]} O-O {[%emt 0:01:50]} 9. Be3 {[%emt 0:00:25]} Nd7 {[%emt 0:02:04]} 10. g4 {[%emt 0:00:23]} Ndc5 {[%emt 0:00:17]} 11. Bc2 {[%emt 0:00:12]} f5 {[%emt 0:01:50]} 12. gxf5 {[%emt 0:00:15]} gxf5 {[%emt 0:00:09]} 13. exf5 {[%emt 0:08:15]} Bxf5 {[%emt 0:00:56]} 14. Bxf5 {[%emt 0:00:05]} Rxf5 {[%emt 0:00:03]} 15. Rg1 {[%emt 0:00:11]} Qf6 {[%emt 0:21:04]} 16. Ng5 {[%emt 0:04:19]} Nb4 {[%emt 0:00:03]} 17. Nge4 {[%emt 0:03:50]} Nbd3+ {[%emt 0:12:38]} 18. Kd2 {[%emt 0:04:37]} Qh4 {[%emt 0:06:51]} 19. Rg4 {[%emt 0:05:07]} Qe7 {[%emt 0:04:24]} 20. Nxc5 {[%emt 0:12:30]} Nxc5 {[%emt 0:01:34]} 21. Qh1 {[%emt 0:01:59]} Kh8 {[%emt 0:04:14]} 22. Rag1 {[%emt 0:01:15]} Rf7 {[%emt 0:02:34]} 23. Qg2 {[%emt 0:06:21]} Nd7 {[%emt 0:06:14]} 24. Ne4 {[%emt 0:02:02]} Nf6 {[%emt 0:00:14]} 25. Rh4 {[%emt 0:03:22]} Nxe4+ {[%emt 0:00:26]} 26. Qxe4 {[%emt 0:00:08]} Bf6 {[%emt 0:00:03]} 27. Rhg4 {[%emt 0:04:52]} Rg7 {[%emt 0:01:36]} 28. Kd3 {[%emt 0:00:29]} Rag8 {[%emt 0:01:56]} 29. Qf5 {[%emt 0:02:23]} Rxg4 {[%emt 0:06:53]} 30. Rxg4 {[%emt 0:00:06]} Re8 {[%emt 0:00:17]} 31. Bh6 {[%emt 0:00:38]} c6 {[%emt 0:01:10]} 32. Ke4 {[%emt 0:00:49]} Qf7 {[%emt 0:03:02]} 33. Bg7+ {[%emt 0:03:34]} Qxg7 {[%emt 0:00:09]} 34. Rxg7 {[%emt 0:00:04]} cxd5+ {[%emt 0:00:08]} 35. cxd5 {[%emt 0:00:27]} Bxg7 {[%emt 0:06:08]} 36. Qd7 {[%emt 0:00:05]} Rf8 {[%emt 0:00:02]} 37. Ke3 {[%emt 0:00:23]} Bh6+ {[%emt 0:01:01]} 38. Ke2 {[%emt 0:00:06]} Rf6 {[%emt 0:00:15]} 39. Qxb7 {[%emt 0:00:04]} 1-0

[Event "1st SOA-GM Festival 2024"]
[Site "Bhubaneswar"]
[Date "2024.02.02"]
[Round "8.10"]
[White "Tologon tegin, Semetei"]
[Black "Frayna, Janelle Mae"]
[Result "1/2-1/2"]
[ECO "D02"]
[WhiteElo "2384"]
[BlackElo "2197"]
[Annotator "RC"]
[PlyCount "129"]
[EventDate "2024.02.01"]
[EventType "swiss"]
[EventCountry "IND"]
[SourceTitle "playchess.com"]
[Source "ChessBase"]
[SourceQuality "1"]
[TimeControl "5400+30"]

1. d4 {[%emt 0:00:05]} Nf6 {[%emt 0:00:44]} 2. Nf3 {[%emt 0:00:21]} d5 {[%emt 0:00:26]} 3. e3 {[%emt 0:00:30]} g6 {[%emt 0:02:56]} 4. Nbd2 {[%emt 0:00:38]} Bg7 {[%emt 0:00:04]} 5. b4 {[%emt 0:00:08]} O-O {[%emt 0:01:38]} 6. Bb2 {[%emt 0:01:28]} Nbd7 {[%emt 0:03:31]} 7. c4 {[%emt 0:01:27]} dxc4 {[%emt 0:02:55]} 8. Nxc4 {[%emt 0:01:54]} Nb6 {[%emt 0:04:01]} 9. Na5 {[%emt 0:00:54]} Nbd5 {[%emt 0:10:42]} 10. a3 {[%emt 0:02:30]} b6 {[%emt 0:04:51]} 11. Nc6 {[%emt 0:00:07]} Qd6 {[%emt 0:02:02]} 12. Rc1 {[%emt 0:00:11]} Bb7 {[%emt 0:01:19]} 13. Nfe5 {[%emt 0:00:31]} Nd7 {[%emt 0:08:20]} 14. Qf3 {[%emt 0:32:23]} e6 {[%emt 0:12:10]} 15. Bb5 {[%emt 0:11:02]} Nxe5 16. Nxe5 Rab8 {[%emt 0:06:03]} 17. Nc6 {[%emt 0:18:19]} a6 {[%emt 0:05:12]} 18. e4 {[%emt 0:00:05]} axb5 {[%emt 0:00:16]} 19. Nxb8 {[%emt 0:00:27]} Rxb8 {[%emt 0:02:29]} 20. exd5 {[%emt 0:00:10]} Bxd5 {[%emt 0:00:04]} 21. Qg3 {[%emt 0:00:25]} Qxg3 {[%emt 0:01:59]} 22. hxg3 {[%emt 0:00:03]} c6 {[%emt 0:01:09]} 23. f3 {[%emt 0:01:26]} h5 {[%emt 0:01:38]} 24. Kf2 {[%emt 0:00:04]} Kf8 {[%emt 0:02:50]} 25. Rhd1 {[%emt 0:01:24]} Ke7 {[%emt 0:01:47]} 26. Rc3 {[%emt 0:00:08]} Kd7 {[%emt 0:02:53]} 27. Bc1 {[%emt 0:00:09]} Ra8 {[%emt 0:00:55]} 28. Bf4 {[%emt 0:00:30]} Rc8 {[%emt 0:02:19]} 29. Be5 {[%emt 0:00:06]} Bf8 {[%emt 0:00:33]} 30. Bf6 {[%emt 0:00:58]} Bd6 {[%emt 0:02:50]} 31. Rh1 {[%emt 0:01:13]} c5 {[%emt 0:01:27]} 32. Rhc1 {[%emt 0:02:15]} c4 {[%emt 0:00:29]} 33. Rh1 {[%emt 0:00:17]} Be7 {[%emt 0:01:28]} 34. Bxe7 {[%emt 0:00:57]} Kxe7 {[%emt 0:02:01]} 35. Rh4 {[%emt 0:00:08]} Kf6 {[%emt 0:01:05]} 36. g4 {[%emt 0:00:16]} hxg4 {[%emt 0:00:36]} 37. Rxg4 {[%emt 0:00:23]} Rh8 {[%emt 0:02:08]} 38. Rc1 {[%emt 0:00:45]} Kf5 {[%emt 0:00:31]} 39. Ke3 {[%emt 0:01:15]} g5 {[%emt 0:00:48]} 40. Rg3 {[%emt 0:00:21]} Ra8 {[%emt 0:01:18]} 41. Rc3 {[%emt 0:00:15]} Rh8 {[%emt 0:00:38]} 42. Rh3 {[%emt 0:00:29]} Rxh3 {[%emt 0:00:18]} 43. gxh3 {[%emt 0:00:03]} e5 {[%emt 0:00:05]} 44. dxe5 {[%emt 0:02:55]} Kxe5 {[%emt 0:00:04]} 45. Rc1 {[%emt 0:00:16]} f5 {[%emt 0:02:33]} 46. Rg1 {[%emt 0:02:46]} f4+ {[%emt 0:00:15]} 47. Ke2 {[%emt 0:00:06]} Kf5 {[%emt 0:00:11]} 48. h4 {[%emt 0:05:54]} gxh4 {[%emt 0:00:04]} 49. Rg4 {[%emt 0:00:04]} h3 {[%emt 0:00:12]} 50. Rh4 {[%emt 0:00:00]} Ke5 {[%emt 0:00:30]} 51. Rxh3 {[%emt 0:00:22]} Kd4 {[%emt 0:00:18]} 52. Rh4 {[%emt 0:00:25]} Kc3 {[%emt 0:00:57]} 53. Rxf4 {[%emt 0:00:48]} Kb2 {[%emt 0:00:04]} 54. Rf5 {[%emt 0:00:32]} Bg8 {[%emt 0:00:55]} 55. Rg5 {[%emt 0:01:13]} Bf7 {[%emt 0:01:11]} 56. Rg7 {[%emt 0:12:51]} Bd5 {[%emt 0:00:41]} 57. Rg5 {[%emt 0:00:35]} Bf7 {[%emt 0:00:17]} 58. f4 {[%emt 0:01:31]} c3 {[%emt 0:00:35]} 59. Rg1 {[%emt 0:00:02]} Bc4+ {[%emt 0:01:15]} 60. Ke3 {[%emt 0:00:07]} Kxa3 {[%emt 0:00:53]} 61. Kd4 {[%emt 0:01:40]} Kb2 {[%emt 0:00:45]} 62. Ke3 {[%emt 0:00:02]} Ka3 {[%emt 0:02:35]} 63. Kd4 {[%emt 0:00:48]} Kb2 {[%emt 0:02:09]} 64. Ke3 {[%emt 0:00:04]} Ka3 {[%emt 0:00:20]} 65. Kd4 {[%emt 0:02:27]} 1/2-1/2

[Event "1st SOA-GM Festival 2024"]
[Site "Bhubaneswar"]
[Date "2024.02.02"]
[Round "8.11"]
[White "Singgih, Diajeng Theresa"]
[Black "Liyanage, Ranindu Dilshan"]
[Result "0-1"]
[ECO "C10"]
[WhiteElo "1867"]
[BlackElo "2366"]
[Annotator "RC"]
[PlyCount "110"]
[EventDate "2024.02.01"]
[EventType "swiss"]
[EventCountry "IND"]
[SourceTitle "playchess.com"]
[Source "ChessBase"]
[SourceQuality "1"]
[TimeControl "5400+30"]

1. e4 {[%emt 0:00:18]} e6 {[%emt 0:00:28]} 2. d4 {[%emt 0:00:56]} d5 {[%emt 0:00:19]} 3. Nc3 {[%emt 0:02:12]} h6 {[%emt 0:01:10]} 4. Nf3 {[%emt 0:01:43]} Nf6 {[%emt 0:00:19]} 5. Bd3 {[%emt 0:01:27]} c5 {[%emt 0:09:03]} 6. exd5 {[%emt 0:04:10]} exd5 {[%emt 0:01:09]} 7. Qe2+ {[%emt 0:02:10]} Be7 {[%emt 0:02:02]} 8. dxc5 {[%emt 0:01:08]} O-O {[%emt 0:00:30]} 9. Be3 {[%emt 0:00:44]} Re8 {[%emt 0:14:18]} 10. Bb5 {[%emt 0:06:18]} Nc6 {[%emt 0:01:55]} 11. O-O {[%emt 0:05:31]} Bxc5 {[%emt 0:02:13]} 12. Rad1 {[%emt 0:00:42]} Bxe3 {[%emt 0:06:02]} 13. fxe3 {[%emt 0:00:19]} Qb6 {[%emt 0:00:53]} 14. Nd4 {[%emt 0:14:57]} Bg4 {[%emt 0:06:07]} 15. Qf2 {[%emt 0:13:54]} Bxd1 {[%emt 0:04:37]} 16. Nxd1 {[%emt 0:13:41]} Qc7 {[%emt 0:10:07]} 17. Nf5 {[%emt 0:03:58]} Ne4 {[%emt 0:00:42]} 18. Qh4 {[%emt 0:01:11]} Re6 {[%emt 0:02:18]} 19. c4 {[%emt 0:01:46]} Ne7 {[%emt 0:05:00]} 20. cxd5 {[%emt 0:06:38]} Nxf5 {[%emt 0:01:12]} 21. Rxf5 {[%emt 0:00:12]} Re5 {[%emt 0:00:32]} 22. Qf4 {[%emt 0:01:03]} Re7 {[%emt 0:01:55]} 23. Qf1 {[%emt 0:07:25]} Nd6 {[%emt 0:00:53]} 24. Rf3 {[%emt 0:00:54]} Qc5 {[%emt 0:00:46]} 25. Bd3 {[%emt 0:01:46]} Qxd5 {[%emt 0:00:49]} 26. Nc3 {[%emt 0:00:11]} Qc5 {[%emt 0:00:26]} 27. Qe2 {[%emt 0:02:40]} Rae8 {[%emt 0:00:28]} 28. Kf2 {[%emt 0:00:08]} Re5 {[%emt 0:02:57]} 29. g4 {[%emt 0:01:59]} b5 {[%emt 0:01:01]} 30. Bc2 {[%emt 0:02:25]} Qc4 {[%emt 0:05:28]} 31. Qd2 {[%emt 0:00:58]} Rd8 {[%emt 0:00:51]} 32. Kg2 {[%emt 0:01:41]} Qxg4+ {[%emt 0:01:46]} 33. Rg3 {[%emt 0:00:00]} Qh4 {[%emt 0:00:18]} 34. Qd4 {[%emt 0:00:58]} Qxd4 {[%emt 0:00:27]} 35. exd4 {[%emt 0:00:01]} Rg5 {[%emt 0:00:17]} 36. Bd3 {[%emt 0:00:58]} a6 {[%emt 0:01:02]} 37. a4 {[%emt 0:00:37]} bxa4 {[%emt 0:00:32]} 38. Rxg5 {[%emt 0:00:26]} hxg5 {[%emt 0:00:08]} 39. Bxa6 {[%emt 0:00:03]} Ra8 {[%emt 0:00:26]} 40. Be2 {[%emt 0:01:12]} a3 {[%emt 0:00:22]} 41. bxa3 {[%emt 0:00:05]} Rxa3 {[%emt 0:00:06]} 42. Nd5 {[%emt 0:00:16]} Ra2 {[%emt 0:00:19]} 43. Kf2 {[%emt 0:00:18]} Nf5 {[%emt 0:00:30]} 44. Nc3 {[%emt 0:00:10]} Rb2 {[%emt 0:02:10]} 45. d5 {[%emt 0:00:20]} Nd4 {[%emt 0:00:12]} 46. Ke3 {[%emt 0:00:15]} Nxe2 {[%emt 0:00:09]} 47. Nxe2 {[%emt 0:00:04]} Kf8 {[%emt 0:00:08]} 48. h3 {[%emt 0:01:28]} Rb3+ {[%emt 0:00:06]} 49. Ke4 {[%emt 0:00:06]} Rxh3 {[%emt 0:00:08]} 50. Nd4 {[%emt 0:00:10]} Rh4+ {[%emt 0:00:13]} 51. Kd3 {[%emt 0:00:12]} Rxd4+ {[%emt 0:00:17]} 52. Kxd4 {[%emt 0:00:02]} Ke7 {[%emt 0:00:09]} 53. Kc5 {[%emt 0:00:12]} Kd7 {[%emt 0:00:05]} 54. d6 {[%emt 0:00:05]} g4 {[%emt 0:00:08]} 55. Kd5 {[%emt 0:00:05]} g3 {[%emt 0:00:06]} 0-1